[Event "Djerba Festival Masters 2024"]
[Site "Djerba"]
[Date "2024.02.22"]
[Round "4.4"]
[White "Niemann, Hans Moke"]
[Black "Divya Deshmukh"]
[Result "1-0"]
[ECO "B51"]
[WhiteElo "2692"]
[BlackElo "2420"]
[Annotator "TA"]
[PlyCount "84"]
[EventDate "2024.02.18"]
[EventType "tourn"]
[EventCountry "TUN"]
[SourceTitle "playchess.com"]
[Source "ChessBase"]
[SourceQuality "1"]
[TimeControl "5400+30"]

{[%evp 14,84,19,21,21,23,37,28,27,29,37,37,52,54,46,47,58,44,50,50,56,54,76,97,103,69,60,64,110,38,72,76,76,87,84,66,141,128,143,151,179,151,153,128,146,160,137,143,122,145,152,155,158,166,202,174,181,210,247,7,11,26,118,112,165,8,100,100,100,149,605,340,2410]} 1. e4 {[%emt 0:03:17]} c5 {[%emt 0:00:20]} 2. Nf3 {[%emt 0:00:17]} Nc6 {[%emt 0:00:11]} 3. Bb5 {[%emt 0:04:21]} d6 {[%emt 0:00:33]} 4. O-O {[%emt 0:03:07]} Bd7 {[%emt 0:00:35]} 5. Re1 {[%emt 0:03:42]} a6 {[%emt 0:01:07]} 6. Bxc6 {[%emt 0:06:07]} Bxc6 {[%emt 0:00:23]} 7. d4 {[%emt 0:00:07]} cxd4 {[%emt 0:00:04]} 8. Nxd4 {[%emt 0:00:10]} Rc8 {[%emt 0:00:12]} 9. c4 {[%emt 0:03:11]} g6 {[%emt 0:00:55]} 10. Nc3 {[%emt 0:03:33]} Bg7 {[%emt 0:00:48] White has an edge.} 11. Be3 {[%emt 0:05:12]} Nf6 {[%emt 0:01:42]} 12. f3 {[%emt 0:00:25]} O-O {[%emt 0:00:19]} 13. Qd2 {[%emt 0:01:29]} Re8 {[%emt 0:01:00]} 14. b3 {[%emt 0:05:29][%cal Bb2b3,Bb3b4][%mdl 32]} Qa5 {[%emt 0:04:38]} 15. Rab1 {[%emt 0:01:34]} e6 {[%emt 0:12:34]} 16. Red1 {[%emt 0:02:12]} Kh8 {[%emt 0:07:14]} 17. Kh1 {[%emt 0:05:17]} Red8 {[%emt 0:11:40]} 18. Nxc6 {[%emt 0:01:05]} bxc6 {[%emt 0:02:36]} 19. b4 {[%emt 0:00:41]} Qc7 {[%emt 0:05:24]} 20. Bf4 $36 {[%emt 0:00:53][%mdl 2048] White is pushing.} Nh5 {[%emt 0:02:30]} (20... Ne8 $14 {is more appropriate.}) 21. Bg5 {[%emt 0:01:06]} (21. Bxd6 $16 Rxd6 22. Qxd6 Bxc3 23. Qxc7 Rxc7 24. Rd3) 21... f6 {[%emt 0:02:20]} 22. Be3 {[%emt 0:02:44]} f5 {[%emt 0:03:08]} 23. Rdc1 {[%emt 0:04:30]} d5 {[%emt 0:06:07]} 24. cxd5 {[%emt 0:04:50]} fxe4 {[%emt 0:06:47]} ({Black should play} 24... cxd5 $14 25. exd5 (25. Nxd5 Qb7 $11) 25... exd5 (25... Bxc3 $2 26. Rxc3 Qd6 27. dxe6 $18) 26. Nxd5 Qb7) 25. Nxe4 $16 {[%emt 0:03:32][%cal Od5d6] d6! would now be deadly.} exd5 {[%emt 0:04:06]} 26. Nc5 {[%emt 0:00:05]} d4 {[%emt 0:06:05]} 27. Bg5 {[%emt 0:01:38][%cal Oc5e6] aiming for Ne6!} (27. Nxa6 $2 dxe3 28. Qxe3 Qf7 $19) 27... Rd5 {[%emt 0:00:33]} 28. Re1 {[%emt 0:04:07]} Be5 {[%emt 0:01:57]} 29. Nxa6 {[%emt 0:11:46]} Qd6 {[%emt 0:04:05] [#]} 30. g4 $1 {[%emt 0:00:17]} Bf4 {[%emt 0:07:56]} 31. Bxf4 {[%emt 0:00:05]} Nxf4 {[%emt 0:00:24]} 32. Nc5 {[%emt 0:00:11] Inhibits Ne6.} Rf8 {[%emt 0:00:15]} 33. a4 {[%emt 0:00:31] White is more active.} h5 {[%emt 0:02:10]} 34. Ne4 {[%emt 0:01:22]} Qd7 {[%emt 0:00:45]} 35. Rg1 {[%emt 0:01:21]} Re5 {[%emt 0:02:40]} 36. Rbd1 $2 {[%emt 0:01:30]} (36. gxh5 $18 {Threatens to win with b5.} gxh5 37. a5) 36... Qd5 $11 {[%emt 0:00:37] ...Rxe4 is the strong threat.} 37. Rde1 {[%emt 0:00:21]} (37. Qxd4 $2 Qxd4 38. Rxd4 Ne2 $19) (37. gxh5 {keeps more tension.} Rxe4 38. fxe4 Qxe4+ 39. Rg2) 37... Kg7 {[%emt 0:01:01] [#]} (37... g5 $11 {remains equal.}) 38. gxh5 $1 $16 {[%emt 0:02:09]} Nxh5 {[%emt 0:01:47]} (38... Rxh5 $16 39. Rg4 Ne6) 39. Ng5 $2 {[%emt 0:02:29]} ({White should try} 39. Qf2 $18) 39... Rxe1 {[%emt 0:01:12]} (39... Rff5 $11 40. Rxe5 Rxe5) 40. Rxe1 {[%emt 0:00:14]} ({Of course not} 40. Qxe1 $6 Rxf3 41. Nxf3 Qxf3+ 42. Rg2 Nf4 43. Qe7+ Kg8 44. Qe8+ Kg7 45. Qe7+ Kg8 46. Qe8+ Kh7 47. Qf7+ Kh6 48. Qf8+ Kh7 49. Qf7+ (49. Qe7+ Kg8 $11) 49... Kh8 50. Qf8+ Kh7 51. Qf7+ $11 (51. Qe7+ Kg8 $11)) 40... Nf4 {[%emt 0:00:11] Wards off Ne6+} 41. h4 {[%emt 0:00:51][%cal Ob4b5] Black must now prevent b5!} Rf5 $2 {[%emt 0:01:35][%mdl 8192]} (41... Kg8 $16 42. Re4 d3) 42. Re4 {[%emt 0:04:15]} Qd6 $2 {[%emt 0:01:04] Weighted Error Value: White=0.32/Black=0.41.  Loses game:     	---       	Black=1      Missed win:     	White=1     	---        Mistake:       	White=2     	Black=6      Inaccurate:     	White=2     	Black=1      OK:         	White=15    	Black=12     Best:        	White=2     	---        Strong:       	White=2     	---} (42... d3 43. a5 (43. Rxf4 Rxf4 44. Qxf4 d2 $14) 43... Qd7) 1-0

[Event "Djerba Festival Masters 2024"]
[Site "Djerba"]
[Date "2024.02.23"]
[Round "5.1"]
[White "Divya Deshmukh"]
[Black "Dardha, Daniel"]
[Result "0-1"]
[ECO "B22"]
[WhiteElo "2420"]
[BlackElo "2602"]
[Annotator "TA"]
[PlyCount "54"]
[EventDate "2024.02.18"]
[EventType "tourn"]
[EventCountry "TUN"]
[SourceTitle "playchess.com"]
[Source "ChessBase"]
[SourceQuality "1"]
[TimeControl "5400+30"]

{[%evp 14,54,0,-8,0,0,0,0,18,15,-4,6,8,10,20,28,31,-16,-13,-38,-17,-22,-10,-61,-24,-41,-60,-60,-41,-176,-200,-208,-145,-155,-148,-177,-170,-172,-173,-314,-293,-307,-222]} 1. e4 {[%emt 0:00:02][%cal Be2e4,Be4e5][%mdl 32]} c5 {[%emt 0:01:00]} 2. c3 {[%emt 0:00:13]} Nf6 {[%emt 0:01:52]} 3. e5 {[%emt 0:00:24]} Nd5 {[%emt 0:00:06]} 4. Nf3 {[%emt 0:00:14]} d6 {[%emt 0:01:35]} 5. d4 {[%emt 0:00:17]} cxd4 {[%emt 0:00:07]} 6. cxd4 {[%emt 0:00:12]} Nc6 {[%emt 0:00:18]} 7. Bc4 {[%emt 0:00:18]} dxe5 {[%emt 0:00:35]} 8. dxe5 {[%emt 0:00:10]} Be6 {[%emt 0:00:35][%cal Od5e3]} 9. O-O {[%emt 0:00:27]} g6 {[%emt 0:00:09]} 10. Ng5 {[%emt 0:01:25]} Bg7 {[%emt 0:00:38] The position is equal.} 11. Nxe6 {[%emt 0:00:23]} fxe6 {[%emt 0:00:05]} 12. f4 {[%emt 0:00:03]} Qa5 {[%emt 0:01:01] Inhibits Nc3. And now ...Qc5+ would win.} 13. Kh1 {[%emt 0:05:51]} Qc5 {[%emt 0:02:49]} 14. Na3 {[%emt 0:00:29]} O-O {[%emt 0:02:13][%cal Og6g5]} 15. Bd2 {[%emt 0:04:12]} (15. Qg4 $14 Kh8 16. Qxe6) 15... Qd4 $11 {[%emt 0:06:06]} 16. Qc1 {[%emt 0:25:48] [#]} (16. Bxd5 {simplifies} Qxd5 17. Qe2 Bh6 18. Nc2) 16... g5 $1 {[%emt 0:15:52][%cal Rg5f4]} 17. Nb5 {[%emt 0:01:20]} (17. fxg5 Rxf1+ (17... Bxe5 18. Bxd5 Rxf1+ 19. Qxf1 $17) 18. Bxf1 Rf8 $17 (18... Nxe5 19. Nb5 $11) (18... Qxe5 19. Nc4 $11)) 17... Qe4 {[%emt 0:04:18][%cal Rg5f4]} 18. Re1 {[%emt 0:11:57]} (18. fxg5 Nxe5 19. Bxd5 Rxf1+ (19... exd5 $2 20. Re1 $17) (19... Qxd5 20. Nc7 $16) 20. Qxf1 exd5) (18. Bxd5 $1 $11 exd5 19. Qc5 gxf4 20. Rae1) 18... Qg6 $15 {[%emt 0:02:59][%cal Rg5f4] Black is more active.} 19. Bxd5 {[%emt 0:16:04]} exd5 {[%emt 0:01:02]} 20. Qc5 $1 {[%emt 0:15:04]} e6 {[%emt 0:13:46]} 21. fxg5 {[%emt 0:03:06] Loses the game.} (21. g3 $15) 21... Nxe5 $19 {[%emt 0:01:31] ...Nd3 would now be deadly.} (21... Bxe5 22. Bc3 Qxg5 23. Bxe5 Nxe5 24. Nc7 $11) 22. Qe3 {[%emt 0:05:24][%cal Od2c3]} Nc4 {[%emt 0:09:14]} 23. Qe2 {[%emt 0:00:11]} Bxb2 {[%emt 0:04:17]} (23... Nxb2 24. Bc3 Bxc3 25. Nxc3 $15) 24. Rab1 {[%emt 0:00:18]} Be5 {[%emt 0:01:39]} 25. Bc3 {[%emt 0:01:10] [#]} Rf5 {[%emt 0:00:42]} (25... Bxc3 26. Nxc3 b6 (26... Qxg5 27. Qxe6+ Kh8 28. Nxd5 $14) 27. Nb5 $15 (27. Qxe6+ Qxe6 28. Rxe6 d4 $11)) 26. Nd4 {[%emt 0:01:20]} (26. Bxe5 $142 Rxe5 27. Qg4) 26... Rf4 {[%emt 0:02:14]} (26... Qxg5 $2 27. Nxf5 (27. Rxb7 Qh6 $11) (27. Nxe6 Qf6 $17) 27... Bxc3 28. Qxe6+ Kh8 29. h4 $18) (26... Rxg5 27. Rxb7 Rh5 28. g3 $19) 27. Qd1 {[%emt 0:04:28]} (27. Nxe6 Qxe6 (27... Re4 $2 28. Qf3 $19) 28. Bxe5 Re4 $19) 27... Raf8 {[%emt 0:02:50] Weighted Error Value: White=0.30/Black=0.07 (flawless) .  Mistake:       	White=4     	---        Inaccurate:     	---       	Black=1      OK:         	White=11    	Black=9      Strong:       	White=1     	---} (27... Qxg5 $2 {perishes.} 28. Nxe6 (28. Rxb7 $2 {is the wrong capture.} Rf2 $19) 28... Qf5 29. Nxf4 $18 (29. Rxe5 Nxe5 30. Nxf4 Qxf4 $18)) 0-1

[Event "Djerba Festival Masters 2024"]
[Site "Djerba"]
[Date "2024.02.23"]
[Round "5.2"]
[White "Ivanchuk, Vasyl"]
[Black "Niemann, Hans Moke"]
[Result "1/2-1/2"]
[ECO "D41"]
[WhiteElo "2623"]
[BlackElo "2692"]
[Annotator "TA"]
[PlyCount "83"]
[EventDate "2024.02.18"]
[EventType "tourn"]
[EventCountry "TUN"]
[SourceTitle "playchess.com"]
[Source "ChessBase"]
[SourceQuality "1"]
[TimeControl "5400+30"]

{[%evp 11,83,21,34,20,33,-13,35,26,36,29,35,22,36,32,23,22,39,40,29,37,26,34,37,28,35,27,36,34,31,34,38,34,41,4,0,7,7,7,8,0,7,0,8,0,0,0,0,0,0,0,0,0,0,0,0,0,0,0,0,0,0,0,0,0,0,0,0,0,0,0,0,0,0,0]} 1. d4 {[%emt 0:00:02]} Nf6 {[%emt 0:00:14]} 2. c4 {[%emt 0:00:03]} e6 {[%emt 0:00:08]} 3. Nf3 {[%emt 0:00:03]} d5 {[%emt 0:00:25]} 4. Nc3 {[%emt 0:00:05]} c5 {[%emt 0:00:36]} 5. cxd5 {[%emt 0:00:04]} cxd4 {[%emt 0:00:23]} 6. Qxd4 {[%emt 0:00:05]} exd5 {[%emt 0:00:07]} 7. e4 {[%emt 0:00:02]} dxe4 {[%emt 0:00:12]} 8. Qxd8+ {[%emt 0:00:05]} Kxd8 {[%emt 0:00:07][%cal Be8d8,Bd8e7,Be7f7][%mdl 32]} 9. Ng5 {[%emt 0:00:02][%csl LRe4,LRf7] White is slightly better.} Be6 {[%emt 0:00:09]} 10. Nxe6+ {[%emt 0:00:03]} fxe6 {[%emt 0:00:07]} 11. Bg5 {[%emt 0:00:03]} Nc6 {[%emt 0:00:24]} 12. Bc4 {[%emt 0:00:35]} Ke7 {[%emt 0:00:50]} 13. Nxe4 {[%emt 0:00:57]} Kf7 {[%emt 0:00:11]} 14. Bxf6 {[%emt 0:00:04]} gxf6 {[%emt 0:00:08]} 15. O-O-O {[%emt 0:00:18]} Rd8 {[%emt 0:00:15]} ({Much worse is} 15... Ne5 16. Bb3 $16) 16. Rxd8 {[%emt 0:02:33]} Nxd8 {[%emt 0:00:06]} 17. Rd1 {[%emt 0:03:27]} Be7 {[%emt 0:00:10]} 18. Rd7 {[%emt 0:00:02] [#] Strongly threatening Nd6+.} f5 {[%emt 0:00:07]} 19. Nd6+ {[%emt 0:00:05]} Kf6 {[%emt 0:00:06]} 20. Nxb7 {[%emt 0:00:02]} Nxb7 {[%emt 0:00:10]} 21. Rxb7 $14 {[%emt 0:00:05][%mdl 4096] Endgame. KRB-KRB} Bc5 {[%emt 0:00:06]} 22. Rc7 {[%emt 0:02:43]} Bxf2 {[%emt 0:00:09] The position is equal.} 23. Rc6 {[%emt 0:00:02]} Re8 {[%emt 0:00:08]} 24. b4 {[%emt 0:00:09]} Ke5 {[%emt 0:03:23]} 25. h3 {[%emt 0:05:36]} Re7 {[%emt 0:06:25]} 26. Kd2 {[%emt 0:02:12]} Bb6 {[%emt 0:02:53]} 27. Ke2 {[%emt 0:00:47]} Bc7 {[%emt 0:00:34]} 28. g4 {[%emt 0:00:55]} Bd6 {[%emt 0:01:38]} 29. b5 {[%emt 0:00:11]} Rg7 {[%emt 0:02:04]} 30. Kf3 {[%emt 0:01:03]} fxg4+ {[%emt 0:00:09]} 31. hxg4 {[%emt 0:00:04]} Rc7 {[%emt 0:00:44]} 32. a4 {[%emt 0:06:47]} Rxc6 {[%emt 0:00:24]} 33. bxc6 $11 {[%emt 0:00:05] KB-KB} h6 {[%emt 0:00:07]} 34. Ke3 {[%emt 0:00:33]} Bc5+ {[%emt 0:00:22]} 35. Kf3 {[%emt 0:00:22] [#] c7 would kill now.} Kd6 {[%emt 0:00:05]} 36. Ke4 {[%emt 0:00:11]} Kxc6 {[%emt 0:00:06]} 37. Bxe6 {[%emt 0:00:04]} Be7 {[%emt 0:00:04]} 38. Bb3 {[%emt 0:00:05]} Kc5 {[%emt 0:00:06]} 39. Bf7 $1 {[%emt 0:00:06]} Kb4 {[%emt 0:00:04]} 40. Be8 {[%emt 0:00:07]} a5 {[%emt 0:00:06]} 41. Kd3 {[%emt 0:00:04]} Bg5 {[%emt 0:00:05]} 42. Ke4 {[%emt 1:20:39] Weighted Error Value: White=0.02 (flawless) /Black=0.02 (flawless) .  Inaccurate:     	White=1     	Black=1      OK:         	White=19    	Black=17     Best:        	---       	Black=3      Strong:       	White=1     	---} 1/2-1/2

[Event "Djerba Festival Masters 2024"]
[Site "Djerba"]
[Date "2024.02.23"]
[Round "5.3"]
[White "Maurizzi, Marc`Andria"]
[Black "Moussard, Jules"]
[Result "1-0"]
[ECO "E06"]
[WhiteElo "2572"]
[BlackElo "2630"]
[Annotator "TA"]
[PlyCount "81"]
[EventDate "2024.02.18"]
[EventType "tourn"]
[EventCountry "TUN"]
[SourceTitle "playchess.com"]
[Source "ChessBase"]
[SourceQuality "1"]
[TimeControl "5400+30"]

{[%evp 15,81,19,17,16,9,16,11,19,36,22,19,23,26,26,12,4,24,1,20,0,14,3,7,9,8,3,86,79,73,76,66,75,66,65,173,103,85,25,33,23,27,15,25,18,110,118,179,175,379,337,475,438,576,569,1488,1390,5704,5979,29982,29983,29983,29984,29984,29985,29992,29993,29993,29994]} 1. Nf3 {[%emt 0:00:17]} Nf6 {[%emt 0:01:48]} 2. g3 {[%emt 0:00:30]} d5 {[%emt 0:03:51]} 3. Bg2 {[%emt 0:00:38]} e6 {[%emt 0:00:06]} 4. O-O {[%emt 0:00:48]} Be7 {[%emt 0:00:32]} 5. d4 {[%emt 0:00:12]} O-O {[%emt 0:00:40]} 6. c4 {[%emt 0:00:02]} c6 {[%emt 0:03:22]} 7. Nc3 {[%emt 0:03:02]} a5 {[%emt 0:00:28] E06: Closed Catalan: Early deviations.} 8. Bf4 {[%emt 0:01:25]} dxc4 {[%emt 0:04:16]} 9. Ne5 {[%emt 0:00:37]} Nd5 {[%emt 0:00:07]} 10. Nxc4 {[%emt 0:00:05]} Nxf4 {[%emt 0:00:06]} 11. gxf4 {[%emt 0:00:10]} Nd7 {[%emt 0:00:50]} 12. e3 {[%emt 0:02:44]} Nb6 {[%emt 0:01:59]} 13. Ne5 {[%emt 0:08:36]} f6 {[%emt 0:08:36]} 14. Nd3 {[%emt 0:00:24]} Nd5 {[%emt 0:00:30]} 15. Rc1 {[%emt 0:01:26]} Kh8 $146 {[%emt 0:02:20]} ({Predecessor:} 15... Bd7 16. Qb3 b6 17. f5 Nxc3 18. Rxc3 a4 19. Qc2 exf5 20. Bxc6 Bxc6 21. Rxc6 Bd6 {1-0 Woodward,A (2501)-Oro,F (2357) Jeddah YM 1st 2024 (3)}) 16. Kh1 {[%emt 0:01:06]} Bd6 {[%emt 0:06:39]} 17. Rg1 {[%emt 0:08:49]} Qe7 {[%emt 0:02:32]} 18. Ne4 {[%emt 0:10:17]} Bc7 {[%emt 0:01:18]} 19. Qh5 {[%emt 0:01:44]} Nb4 {[%emt 0:09:48]} 20. Bf1 {[%emt 0:07:46]} e5 {[%emt 0:05:02]} (20... b6 $11 {keeps the balance.}) 21. dxe5 $16 {[%emt 0:29:19]} fxe5 {[%emt 0:04:44]} 22. Nxe5 {[%emt 0:01:24]} Bxe5 {[%emt 0:00:06]} 23. Qxe5 {[%emt 0:00:07]} (23. fxe5 Bf5 24. Nd6 g6 $11) 23... Qxe5 {[%emt 0:00:05]} 24. fxe5 {[%emt 0:00:05]} Be6 {[%emt 0:00:24]} (24... Nxa2 $14 25. Rd1 Nb4) 25. f4 {[%emt 0:04:37]} (25. a3 $18 Nd5 26. Bg2) 25... Bxa2 {[%emt 0:00:03]} 26. Bc4 {[%emt 0:00:46]} (26. Nd6 $16) 26... Bxc4 $11 {[%emt 0:01:53]} 27. Rxc4 {[%emt 0:00:03]} Nd5 {[%emt 0:02:15]} 28. Rg3 {[%emt 0:01:49]} a4 $1 {[%emt 0:02:53]} 29. Nd6 {[%emt 0:01:28]} g6 {[%emt 0:03:58]} (29... Ne7 $1 $11 {remains equal.}) 30. f5 $1 $16 {[%emt 0:05:59]} (30. Nxb7 Rfb8 31. Nc5 Rxb2 32. Rxa4 Rab8) 30... b5 {[%emt 0:04:43]} (30... gxf5 $16 31. e6 (31. Nxb7 a3 $11) 31... h6) 31. Rcg4 $1 $18 {[%emt 0:05:07]} ({Worse is} 31. Rxc6 Ne7 32. Rb6 Nxf5 $11) 31... a3 $2 {[%emt 0:24:33]} (31... gxf5 32. Rg8+ Rxg8 33. Nf7#) (31... Nf6 32. exf6 Rxf6) 32. bxa3 $18 {[%emt 0:00:56]} Rxa3 {[%emt 0:00:04]} (32... Nf6 {was necessary.}) 33. e4 {[%emt 0:03:36]} Ne3 {[%emt 0:00:15]} 34. e6 {[%emt 0:00:20]} (34. fxg6 Nxg4 35. Rxa3 Nxe5 $17 (35... hxg6 $2 {too greedy.} 36. e6 $18)) 34... Rfa8 {[%emt 0:00:29]} 35. Rxe3 {[%emt 0:01:01]} Rxe3 {[%emt 0:00:02] [#]} 36. f6 $1 {[%emt 0:00:11]} Kg8 {[%emt 0:05:52]} 37. e7 {[%emt 0:00:21]} Rf3 {[%emt 0:00:02] [#]} 38. e5 $1 {[%emt 0:00:32]} Rf2 {[%emt 0:00:41]} 39. Kg1 {[%emt 0:00:39]} Re2 {[%emt 0:00:40]} 40. e8=Q+ {[%emt 0:01:32]} (40. e8=B $2 Ra1#) 40... Rxe8 {[%emt 0:00:05]} 41. f7+ {[%emt 0:00:00]} (41. Nxe8 Rxe5 42. Nd6 Rd5 $18) 1-0

[Event "Djerba Festival Masters 2024"]
[Site "Djerba"]
[Date "2024.02.23"]
[Round "5.4"]
[White "Bellahcene, Bilel"]
[Black "Tari, Aryan"]
[Result "1/2-1/2"]
[ECO "C84"]
[WhiteElo "2516"]
[BlackElo "2623"]
[Annotator "RC"]
[PlyCount "33"]
[EventDate "2024.02.18"]
[EventType "tourn"]
[EventCountry "TUN"]
[SourceTitle "playchess.com"]
[Source "ChessBase"]
[SourceQuality "1"]
[TimeControl "5400+30"]

1. e4 {[%emt 0:00:13]} e5 {[%emt 0:00:14]} 2. Nf3 {[%emt 0:00:13]} Nc6 {[%emt 0:00:08]} 3. Bb5 {[%emt 0:00:10]} a6 {[%emt 0:00:23]} 4. Ba4 {[%emt 0:00:04]} Nf6 {[%emt 0:00:06]} 5. O-O {[%emt 0:00:23]} Nxe4 {[%emt 0:00:27]} 6. d4 {[%emt 0:00:54]} Be7 {[%emt 0:00:27]} 7. Re1 {[%emt 0:01:32]} b5 {[%emt 0:01:11]} 8. Rxe4 {[%emt 0:08:15]} d5 {[%emt 0:00:17]} 9. Nxe5 {[%emt 0:00:35]} Nxe5 {[%emt 0:00:23]} 10. Rxe5 {[%emt 0:00:04]} bxa4 {[%emt 0:00:05]} 11. b3 {[%emt 0:05:58]} O-O {[%emt 0:00:29]} 12. Ba3 {[%emt 0:01:38]} Bxa3 {[%emt 0:00:19]} 13. Nxa3 {[%emt 0:00:05]} Re8 {[%emt 0:00:19]} 14. Rxe8+ {[%emt 0:07:41]} Qxe8 {[%emt 0:00:36]} 15. Nb1 {[%emt 0:00:18]} Bd7 {[%emt 0:00:06]} 16. Nc3 {[%emt 0:00:47]} Qe6 {[%emt 0:00:05]} 17. Qd2 {[%emt 0:10:58]} 1/2-1/2

[Event "Djerba Festival Masters 2024"]
[Site "Djerba"]
[Date "2024.02.24"]
[Round "6.1"]
[White "Dardha, Daniel"]
[Black "Tari, Aryan"]
[Result "1/2-1/2"]
[ECO "A20"]
[WhiteElo "2602"]
[BlackElo "2623"]
[Annotator "TA"]
[PlyCount "32"]
[EventDate "2024.02.18"]
[EventType "tourn"]
[EventCountry "TUN"]
[SourceTitle "playchess.com"]
[Source "ChessBase"]
[SourceQuality "1"]
[TimeControl "5400+30"]

{[%evp 9,32,14,14,13,25,6,14,2,7,0,0,14,8,19,0,0,0,0,0,0,-8,-24,-16,-17,-25]} 1. c4 {[%emt 0:00:03]} e5 {[%emt 0:01:32]} 2. g3 {[%emt 0:00:13]} c6 {[%emt 0:00:38]} 3. Nf3 {[%emt 0:00:14]} e4 {[%emt 0:00:10]} 4. Nd4 {[%emt 0:00:05][%cal Bf3d4,Bd4c2,Bc2e3][%mdl 32]} d5 {[%emt 0:01:58]} 5. cxd5 {[%emt 0:00:17]} Qxd5 {[%emt 0:00:07]} 6. Nc2 {[%emt 0:00:07]} Nf6 {[%emt 0:00:52]} 7. Nc3 {[%emt 0:00:12]} Qe5 {[%emt 0:00:17]} 8. Bg2 {[%emt 0:00:09]} Na6 {[%emt 0:00:35]} 9. Ne3 {[%emt 0:00:38]} Bc5 {[%emt 0:04:18]} 10. Qa4 {[%emt 0:00:48][%cal Rc3e4]} b5 {[%emt 0:06:46]} 11. Qc2 {[%emt 0:04:09][%cal Rc3e4]} Nb4 {[%emt 0:03:43]} 12. Qb1 {[%emt 0:05:42][%cal Rc3e4]} Bxe3 {[%emt 0:05:55]} 13. fxe3 {[%emt 0:03:17][%cal Oa2a3]} Bf5 {[%emt 0:00:38]} 14. b3 {[%emt 0:16:24]} O-O {[%emt 0:11:36] White is weak on the light squares} 15. Bb2 {[%emt 0:01:15][%cal Oc3e4] Hoping for Nxe4!} Qe6 {[%emt 0:02:22]} 16. O-O {[%emt 0:03:35]} Rfe8 {[%emt 0:03:08] Not much happened in this game.   Weighted Error Value: White=0.02 (flawless) /Black=0.00 (flawless) .  OK:         	White=5     	Black=10     Best:        	---       	Black=1} 1/2-1/2